fUST/lending_fUST_20250208
["ID","MTS","AMOUNT","RATE_DAILY","PERIOD"]
[352225033,1739008246552,-500.0,0.00011369,2]
[352225034,1739008246562,-1512.53,0.00011369,2]
[352225035,1739008246572,-500.0,0.00011369,2]
[352225036,1739008246582,-500.0,0.00011369,2]
[352225037,1739008246592,-500.0,0.00011369,2]
[352225038,1739008246602,-500.0,0.00011369,2]
[352225039,1739008246612,-1842.68,0.00011369,2]
[352225040,1739008246622,-500.0,0.00011369,2]
[352225041,1739008246632,-1326.97,0.00011369,2]
[352225042,1739008246642,-500.0,0.00011369,2]
[352225043,1739008246652,-722.25,0.00011369,2]
[352225044,1739008246662,-934.01,0.00011369,2]
[352225045,1739008246672,-500.0,0.00011369,2]
[352225046,1739008246682,-222.94555897,0.00011369,2]
[352225047,1739008246694,-500.0,0.00011369,2]
[352225048,1739008246704,-586.26,0.00011369,2]
[352225049,1739008246714,-151.0,0.000114,2]
[352225050,1739008246724,-151.0,0.000114,2]
[352225051,1739008246734,-354.7727591,0.000114,2]
[352225052,1739008246744,-354.7727591,0.000114,2]
[352225053,1739008246754,-354.7727591,0.000114,2]
[352225054,1739008246764,-354.0474592,0.000114,2]
[352225055,1739008246774,-4109.64448334,0.00011406,2]
[352225056,1739008246784,-165.68827188,0.00011472,5]
[352225057,1739008246794,-151.0,0.000115,2]
[352225058,1739008246804,-500.0,0.00011506,2]
[352225059,1739008246814,-236.93711305,0.00011506,2]
[352225060,1739008246824,-621.5,0.00011506,2]
[352225061,1739008246834,-500.0,0.00011506,2]
[352225062,1739008246844,-500.0,0.00011506,2]
[352225063,1739008246854,-500.0,0.00011506,2]
[352225064,1739008246864,-500.0,0.00011506,2]
[352225065,1739008246874,-500.0,0.00011506,2]
[352225066,1739008246883,-500.0,0.00011506,2]
[352225067,1739008246893,-500.0,0.00011506,2]
[352225068,1739008246903,-500.0,0.00011506,2]
[352225069,1739008246912,-500.0,0.00011506,2]
[352225070,1739008246922,-500.0,0.00011506,2]
[352225071,1739008246931,-500.0,0.00011506,2]
[352225072,1739008246941,-500.0,0.00011506,2]
[352225073,1739008246950,-500.0,0.00011506,2]
[352225074,1739008246960,-500.0,0.00011506,2]
[352225075,1739008246970,-500.0,0.00011506,2]
[352225076,1739008246980,-500.0,0.00011506,2]
[352225077,1739008246992,-500.0,0.00011506,2]
[352225078,1739008247002,-508.44,0.00011506,2]
[352225079,1739008247013,-500.0,0.00011506,2]
[352225080,1739008247023,-500.0,0.00011506,2]
[352225081,1739008247032,-500.0,0.00011506,2]
[352225082,1739008247042,-500.0,0.00011506,2]
[352225083,1739008247053,-500.0,0.00011506,2]
[352225084,1739008247063,-472.88083876,0.00011506,2]
[352225085,1739008247072,-871.2,0.00011506,2]
[352225086,1739008247083,-500.0,0.00011506,2]
[352225087,1739008247093,-500.0,0.00011506,2]
[352225088,1739008247103,-500.0,0.00011506,2]
[352225089,1739008247113,-500.0,0.00011506,2]
[352225090,1739008247123,-713.53,0.00011506,2]
[352225091,1739008247132,-828.86,0.00011506,2]
[352225092,1739008247142,-609.74,0.00011506,2]
[352225093,1739008247152,-500.0,0.00011506,2]
[352225094,1739008247162,-500.0,0.00011506,2]
[352225095,1739008247171,-500.0,0.00011506,2]
[352225096,1739008247181,-500.0,0.00011506,2]
[352225097,1739008247191,-500.0,0.00011506,2]
[352225098,1739008247200,-500.0,0.00011506,2]
[352225099,1739008247209,-500.0,0.00011506,2]
[352225100,1739008247218,-500.0,0.00011506,2]
[352225101,1739008247228,-500.0,0.00011506,2]
[352225102,1739008247237,-500.0,0.00011506,2]
[352225103,1739008247246,-1113.51,0.00011506,2]
[352225104,1739008247255,-1455.41,0.00011506,2]
[352225105,1739008247265,-500.0,0.00011506,2]
[352225106,1739008247275,-697.95,0.00011506,2]
[352225107,1739008247285,-1497.93,0.00011506,2]
[352225108,1739008247294,-500.0,0.00011506,2]
[352225109,1739008247304,-457.10840547,0.00011506,2]
[352225110,1739008247315,-500.0,0.00011506,2]
[352225111,1739008247324,-500.0,0.00011506,2]
[352225112,1739008247333,-747.14,0.00011506,2]
[352225113,1739008247343,-500.0,0.00011506,2]
[352225114,1739008247353,-500.0,0.00011506,2]
[352225115,1739008247362,-500.0,0.00011506,2]
[352225116,1739008247372,-500.0,0.00011506,2]
[352225117,1739008247381,-500.0,0.00011506,2]
[352225118,1739008247392,-500.0,0.00011506,2]
[352225119,1739008247401,-344.691597,0.00011506,2]
[352225120,1739008247410,-344.691597,0.00011506,2]
[352225121,1739008247420,-1703.07,0.00011506,2]
[352225122,1739008247430,-500.0,0.00011506,2]
[352225123,1739008247439,-500.0,0.00011506,2]
[352225124,1739008247448,-500.0,0.00011506,2]
[352225125,1739008247458,-1140.65,0.00011506,2]
[352225126,1739008247467,-500.0,0.00011506,2]
[352225127,1739008247477,-500.0,0.00011506,2]
[352225128,1739008247487,-189.07791921,0.00011506,2]
[352225129,1739008247496,-500.0,0.00011506,2]
[352225130,1739008247506,-500.0,0.00011506,2]
[352225131,1739008247515,-500.0,0.00011506,2]
[352225132,1739008247525,-500.0,0.00011506,2]
[352225133,1739008247534,-570.23,0.00011506,2]
[352225134,1739008247544,-229.5921136,0.00011506,2]
[352225135,1739008247554,-1845.77,0.00011506,2]
[352225136,1739008247563,-731.19,0.00011506,2]
[352225137,1739008247573,-500.0,0.00011506,2]
[352225138,1739008247583,-500.0,0.00011506,2]
[352225139,1739008247593,-776.22,0.00011506,2]
[352225140,1739008247603,-500.0,0.00011506,2]
[352225141,1739008247612,-2163.76,0.00011506,2]
[352225142,1739008247622,-500.0,0.00011506,2]
[352225143,1739008247632,-500.0,0.00011506,2]
[352225144,1739008247641,-500.0,0.00011506,2]
[352225145,1739008247651,-1641.21,0.00011506,2]
[352225146,1739008247661,-500.0,0.00011506,2]
[352225147,1739008247670,-500.0,0.00011506,2]
[352225148,1739008247680,-3235.64,0.00011506,2]
[352225149,1739008247692,-1371.9,0.00011506,2]
[352225150,1739008247702,-835.5,0.00011506,2]
[352225151,1739008247711,-500.0,0.00011506,2]
[352225152,1739008247720,-500.0,0.00011506,2]
[352225153,1739008247730,-3348.34,0.00011506,2]
[352225154,1739008247739,-500.0,0.00011506,2]
[352225155,1739008247749,-500.0,0.00011506,2]
[352225156,1739008247759,-3475.79,0.00011506,2]
[352225157,1739008247768,-395.928204,0.00011506,2]
[352225158,1739008247778,-782.47,0.00011506,2]
[352225159,1739008247787,-500.0,0.00011506,2]
[352225160,1739008247797,-500.0,0.00011506,2]
[352225161,1739008247806,-395.928204,0.00011506,2]
[352225162,1739008247815,-500.0,0.00011506,2]
[352225163,1739008247824,-1156.73,0.00011506,2]
[352225164,1739008247834,-500.0,0.00011506,2]
[352225165,1739008247844,-500.0,0.00011506,2]
[352225166,1739008247854,-500.0,0.00011506,2]
[352225167,1739008247863,-500.0,0.00011506,2]
[352225168,1739008247873,-500.0,0.00011506,2]
[352225169,1739008247883,-500.0,0.00011506,2]
[352225170,1739008247893,-1381.01,0.00011506,2]
[352225171,1739008247903,-500.0,0.00011506,2]
[352225172,1739008247912,-500.0,0.00011506,2]
[352225173,1739008247922,-500.0,0.00011506,2]
[352225174,1739008247931,-500.0,0.00011506,2]
[352225175,1739008247941,-354.83054355,0.00011506,2]
[352225176,1739008247952,-4150.59,0.00011506,2]
[352225177,1739008247961,-500.0,0.00011506,2]
[352225178,1739008247971,-151.0,0.00011506,2]
[352225179,1739008247981,-500.0,0.00011506,2]
[352225180,1739008247991,-500.0,0.00011506,2]
[352225181,1739008248000,-685.16,0.00011506,2]
[352225182,1739008248011,-500.0,0.00011506,2]
[352225183,1739008248021,-5647.62,0.00011506,2]
[352225184,1739008248031,-1207.49,0.00011506,2]
[352225185,1739008248041,-500.0,0.00011506,2]
[352225186,1739008248051,-500.0,0.00011506,2]
[352225187,1739008248062,-151.0,0.00011506,2]
[352225188,1739008248072,-2102.51,0.00011506,2]
[352225189,1739008248082,-500.0,0.00011506,2]
[352225190,1739008248093,-500.0,0.00011506,2]
[352225191,1739008248102,-1676.9,0.00011506,2]
[352225192,1739008248112,-599.554219,0.00011506,2]
[352225193,1739008248122,-16657.69,0.00011506,2]
[352225194,1739008248132,-599.554219,0.00011506,2]
[352225195,1739008248143,-1456.45,0.00011506,2]
[352225196,1739008248152,-500.0,0.00011506,2]
[352225197,1739008248163,-500.0,0.00011506,2]
[352225198,1739008248173,-500.0,0.00011506,2]
[352225199,1739008248184,-500.0,0.00011506,2]
[352225200,1739008248194,-49622.88,0.00011506,2]
[352225201,1739008248205,-2027.9,0.00011506,2]
[352225202,1739008248215,-500.0,0.00011506,2]
[352225203,1739008248224,-500.0,0.00011506,2]
[352225204,1739008248234,-500.0,0.00011506,2]
[352225205,1739008248244,-500.0,0.00011506,2]
[352225206,1739008248255,-1454.71,0.00011506,2]
[352225207,1739008248265,-500.0,0.00011506,2]
[352225208,1739008248275,-500.0,0.00011506,2]
[352225209,1739008248285,-201.77620619,0.00011506,2]
[352225210,1739008248295,-2194.61,0.00011506,2]
[352225211,1739008248305,-151.0,0.00011506,2]
[352225212,1739008248317,-500.0,0.00011506,2]
[352225213,1739008248328,-500.0,0.00011506,2]
[352225214,1739008248338,-500.0,0.00011506,2]
[352225215,1739008248348,-1459.27,0.00011506,2]
[352225216,1739008248358,-500.0,0.00011506,2]
[352225217,1739008248368,-500.0,0.00011506,2]
[352225218,1739008248377,-500.0,0.00011506,2]
[352225219,1739008248388,-500.0,0.00011506,2]
[352225220,1739008248399,-968.03,0.00011506,2]
[352225221,1739008248410,-500.0,0.00011506,2]
[352225222,1739008248421,-500.0,0.00011506,2]
[352225223,1739008248432,-1278.14,0.00011506,2]
[352225224,1739008248444,-500.0,0.00011506,2]
[352225225,1739008248454,-500.0,0.00011506,2]
[352225226,1739008248464,-1960.89,0.00011506,2]
[352225227,1739008248474,-551.77,0.00011506,2]
[352225228,1739008248483,-537.32,0.00011506,2]
[352225229,1739008248493,-317.980896,0.00011506,2]
[352225230,1739008248503,-500.0,0.00011506,2]
[352225231,1739008248515,-500.0,0.00011506,2]
[352225232,1739008248525,-317.980896,0.00011506,2]
[352225233,1739008248535,-2537.01,0.00011506,2]
[352225234,1739008248546,-673.12,0.00011506,2]
[352225235,1739008248556,-9107.0,0.00011506,2]
[352225236,1739008248566,-500.0,0.00011506,2]
[352225237,1739008248577,-310.831523,0.00011506,2]
[352225238,1739008248587,-2937.07,0.00011506,2]
[352225239,1739008248598,-500.0,0.00011506,2]
[352225240,1739008248608,-310.831523,0.00011506,2]
[352225241,1739008248618,-500.0,0.00011506,2]
[352225242,1739008248629,-500.0,0.00011506,2]
[352225243,1739008248639,-3611.62,0.00011506,2]
[352225244,1739008248649,-500.0,0.00011506,2]
[352225245,1739008248659,-685.36,0.00011506,2]
[352225246,1739008248670,-622.307941,0.00011506,2]
[352225247,1739008248681,-1670.54,0.00011506,2]
[352225248,1739008248694,-500.0,0.00011506,2]
[352225249,1739008248705,-500.0,0.00011506,2]
[352225250,1739008248716,-622.307941,0.00011506,2]
[352225251,1739008248726,-500.0,0.00011506,2]
[352225252,1739008248736,-151.0,0.00011506,2]
[352225253,1739008248746,-1038.43,0.00011506,2]
[352225254,1739008248922,-686.96,0.00011506,2]
[352225255,1739008248934,-500.0,0.00011506,2]
[352225256,1739008248945,-500.0,0.00011506,2]
[352225257,1739008248956,-500.0,0.00011506,2]
[352225258,1739008248966,-1911.51,0.00011506,2]
[352225259,1739008248977,-151.0,0.00011506,2]
[352225260,1739008248988,-5231.18,0.00011506,2]
[352225261,1739008248998,-4458.27,0.00011506,2]
[352225262,1739008249009,-500.0,0.00011506,2]
[352225263,1739008249019,-500.0,0.00011506,2]
[352225264,1739008249029,-500.0,0.00011506,2]
[352225265,1739008249039,-902.36,0.00011506,2]
[352225266,1739008249049,-500.0,0.00011506,2]
[352225267,1739008249059,-474.45704257,0.00011506,2]
[352225268,1739008249070,-1512.53,0.00011506,2]
[352225269,1739008249081,-500.0,0.00011506,2]
[352225270,1739008249091,-500.0,0.00011506,2]
[352225271,1739008249101,-500.0,0.00011506,2]
[352225272,1739008249111,-500.0,0.00011506,2]
[352225273,1739008249122,-1842.68,0.00011506,2]
[352225274,1739008249132,-500.0,0.00011506,2]
[352225275,1739008249144,-1326.97,0.00011506,2]
[352225276,1739008249155,-500.0,0.00011506,2]
[352225277,1739008249165,-722.25,0.00011506,2]
[352225278,1739008249176,-934.01,0.00011506,2]
[352225279,1739008249187,-500.0,0.00011506,2]
[352225280,1739008249199,-560.31324239,0.00011506,2]
[352225281,1739008249210,-586.26,0.00011506,2]
[352225282,1739008249220,-583.22546041,0.00011556,2]
[352225283,1739008249231,-500.627,0.00011559,2]
[352225284,1739008249242,-503.18470137,0.00011597,2]
[352225285,1739008249251,-1103660.9437065,0.000116,2]
[352225286,1739008249386,-500.0,0.00010958,2]
[352225287,1739008249396,-500.0,0.00010958,2]
[352225288,1739008249406,-164.34,0.00010959,2]
[352225289,1739008249416,-500.0,0.00011095,2]
[352225290,1739008249426,-500.0,0.00011095,2]
[352225291,1739008249436,-391.88252646,0.00011232,2]
[352225292,1739008249446,-500.0,0.00011232,2]
[352225293,1739008249456,-167677.12043841,0.000116,2]
[352225297,1739008395198,3000.0,0.00014,30]
[352225298,1739008395486,3000.0,0.0001401,30]
[352225299,1739008395793,3000.0,0.0001402,30]
[352225307,1739009204583,1000.0,0.00018,120]
[352225308,1739009360476,-3000.0,0.0001403,30]
[352225309,1739009360497,-3000.0,0.0001404,30]
[352225310,1739009360517,-3000.0,0.0001405,30]
[352225311,1739009360538,-3000.0,0.0001406,30]
[352225312,1739009360559,-3000.0,0.0001407,30]
[352225313,1739009360580,-3000.0,0.0001408,30]
[352225314,1739009360600,-1933.7688,0.0001409,30]
[352225401,1739009432775,-500.0,0.00010957,2]
[352225403,1739009432785,-500.0,0.00010957,2]
[352225405,1739009432794,-209.08071459,0.00010957,2]
[352225407,1739009432803,-204.83420594,0.00010957,2]
[352225409,1739009432812,-500.0,0.00010958,2]
[352225411,1739009432822,-500.0,0.00010958,2]
[352225413,1739009432831,-500.0,0.00010958,2]
[352225414,1739009432840,-500.0,0.00010958,2]
[352225416,1739009432848,-366.53890244,0.00010958,2]
[352225419,1739009432864,-133.46109756,0.00010958,2]
[352225420,1739009432873,-500.0,0.00010958,2]
[352225421,1739009432883,-500.0,0.00010958,2]
[352225422,1739009432892,-302.84087075,0.00010958,2]
[352225424,1739009432901,-500.0,0.00010958,2]
[352225426,1739009432911,-500.0,0.00010958,2]
[352225427,1739009432920,-500.0,0.00010958,2]
[352225428,1739009432929,-500.0,0.00010958,2]
[352225430,1739009432939,-500.0,0.00010958,2]
[352225432,1739009432949,-500.0,0.00010958,2]
[352225434,1739009432959,-221.25338689,0.00010958,2]
[352225455,1739009438619,-278.74661311,0.00010958,2]
[352225457,1739009438628,-500.0,0.00010958,2]
[352225459,1739009438638,-500.0,0.00010958,2]
[352225461,1739009438647,-500.0,0.00010958,2]
[352225463,1739009438657,-500.0,0.00010958,2]
[352225465,1739009438667,-500.0,0.00010958,2]
[352225467,1739009438676,-500.0,0.00010958,2]
[352225469,1739009438685,-500.0,0.00010958,2]
[352225471,1739009438696,-500.0,0.00010958,2]
[352225473,1739009438705,-500.0,0.00010958,2]
[352225475,1739009438715,-713.97,0.00010958,2]
[352225477,1739009438724,-500.0,0.00010958,2]
[352225479,1739009438733,-632.42,0.00010958,2]
[352225482,1739009438742,-500.0,0.00010958,2]
[352225485,1739009438752,-500.0,0.00010958,2]
[352225488,1739009438761,-500.0,0.00010958,2]
[352225491,1739009438770,-500.0,0.00010958,2]
[352225494,1739009438779,-869.64,0.00010958,2]
[352225497,1739009438788,-500.0,0.00010958,2]
[352225500,1739009438797,-500.0,0.00010958,2]
[352225503,1739009438807,-500.0,0.00010958,2]
[352225506,1739009438816,-500.0,0.00010958,2]
[352225509,1739009438825,-500.0,0.00010958,2]
[352225511,1739009438835,-500.0,0.00010958,2]
[352225513,1739009438843,-500.0,0.00010958,2]
[352225515,1739009438854,-500.0,0.00010958,2]
[352225517,1739009438863,-500.0,0.00010958,2]
[352225519,1739009438872,-500.0,0.00010958,2]
[352225521,1739009438881,-500.0,0.00010958,2]
[352225523,1739009438890,-189.07791921,0.00010958,2]
[352225525,1739009438899,-500.0,0.00010958,2]
[352225527,1739009438909,-500.0,0.00010958,2]
[352225529,1739009438918,-852.32,0.00010958,2]
[352225531,1739009438927,-500.0,0.00010958,2]
[352225533,1739009438937,-500.0,0.00010958,2]
[352225535,1739009438945,-345.35916834,0.00010958,2]
[352225537,1739009438955,-500.0,0.00010958,2]
[352225539,1739009438964,-500.0,0.00010958,2]
[352225540,1739009438973,-500.0,0.00010958,2]
[352225542,1739009438982,-500.0,0.00010958,2]
[352225544,1739009438991,-500.0,0.00010958,2]
[352225546,1739009439000,-500.0,0.00010958,2]
[352225548,1739009439010,-537.69,0.00010958,2]
[352225550,1739009439019,-500.0,0.00010958,2]
[352225552,1739009439028,-500.0,0.00010958,2]
[352225554,1739009439039,-500.0,0.00010958,2]
[352225556,1739009439048,-500.0,0.00010958,2]
[352225558,1739009439059,-500.0,0.00010958,2]
[352225560,1739009439068,-500.0,0.00010958,2]
[352225562,1739009439078,-500.0,0.00010958,2]
[352225564,1739009439088,-610.86,0.00010958,2]
[352225566,1739009439100,-500.0,0.00010958,2]
[352225568,1739009439109,-500.0,0.00010958,2]
[352225570,1739009439118,-607.82443427,0.00010958,2]
[352225572,1739009439128,-500.0,0.00010958,2]
[352225574,1739009439140,-500.0,0.00010958,2]
[352225576,1739009439153,-774.05,0.00010958,2]
[352225578,1739009439163,-500.0,0.00010958,2]
[352225580,1739009439172,-500.0,0.00010958,2]
[352225582,1739009439182,-500.0,0.00010958,2]
[352225584,1739009439191,-500.0,0.00010958,2]
[352225586,1739009439200,-719.76,0.00010958,2]
[352225588,1739009439210,-500.0,0.00010958,2]
[352225590,1739009439218,-500.0,0.00010958,2]
[352225592,1739009439228,-500.0,0.00010958,2]
[352225594,1739009439237,-500.0,0.00010958,2]
[352225596,1739009439245,-500.0,0.00010958,2]
[352225598,1739009439254,-500.0,0.00010958,2]
[352225600,1739009439263,-500.0,0.00010958,2]
[352225602,1739009439272,-500.0,0.00010958,2]
[352225604,1739009439281,-500.0,0.00010958,2]
[352225606,1739009439290,-500.0,0.00010958,2]
[352225608,1739009439299,-500.0,0.00010958,2]
[352225610,1739009439308,-500.0,0.00010958,2]
[352225612,1739009439317,-1090.02,0.00010958,2]
[352225614,1739009439326,-500.0,0.00010958,2]
[352225616,1739009439335,-500.0,0.00010958,2]
[352225618,1739009439344,-500.0,0.00010958,2]
[352225620,1739009439353,-500.0,0.00010958,2]
[352225621,1739009439362,-500.0,0.00010958,2]
[352225622,1739009439372,-500.0,0.00010958,2]
[352225623,1739009439381,-500.0,0.00010958,2]
[352225624,1739009439390,-1436.01,0.00010958,2]
[352225625,1739009439399,-500.0,0.00010958,2]
[352225626,1739009439409,-500.0,0.00010958,2]
[352225627,1739009439419,-500.0,0.00010958,2]
[352225628,1739009439428,-500.0,0.00010958,2]
[352225629,1739009439437,-1466.47,0.00010958,2]
[352225630,1739009439448,-500.0,0.00010958,2]
[352225631,1739009439457,-500.0,0.00010958,2]
[352225632,1739009439467,-500.0,0.00010958,2]
[352225633,1739009439478,-500.0,0.00010958,2]
[352225634,1739009439487,-599.69,0.00010958,2]
[352225635,1739009439497,-500.0,0.00010958,2]
[352225636,1739009439507,-500.0,0.00010958,2]
[352225637,1739009439516,-500.0,0.00010958,2]
[352225638,1739009439526,-500.0,0.00010958,2]
[352225639,1739009439535,-509.64092162,0.00010958,2]
[352225640,1739009439544,-500.0,0.00010958,2]
[352225641,1739009439554,-500.0,0.00010958,2]
[352225642,1739009439564,-500.0,0.00010958,2]
[352225643,1739009439574,-500.0,0.00010958,2]
[352225644,1739009439583,-500.0,0.00010958,2]
[352225645,1739009439592,-500.0,0.00010958,2]
[352225646,1739009439602,-500.0,0.00010958,2]
[352225647,1739009439612,-500.0,0.00010958,2]
[352225648,1739009439621,-500.0,0.00010958,2]
[352225649,1739009439631,-500.0,0.00010958,2]
[352225650,1739009439640,-500.0,0.00010958,2]
[352225651,1739009439650,-500.0,0.00010958,2]
[352225652,1739009439660,-500.0,0.00010958,2]
[352225653,1739009439669,-500.0,0.00010958,2]
[352225654,1739009439679,-500.0,0.00010958,2]
[352225655,1739009439688,-500.0,0.00010958,2]
[352225656,1739009439697,-500.0,0.00010958,2]
[352225657,1739009439706,-316.84474611,0.00010958,2]
[352225658,1739009439715,-500.0,0.00010958,2]
[352225659,1739009439725,-500.0,0.00010958,2]
[352225660,1739009439734,-1135.68,0.00010958,2]
[352225661,1739009439743,-1616.62,0.00010958,2]
[352225662,1739009439752,-509.10665467,0.00010958,2]
[352225663,1739009439761,-500.0,0.00010958,2]
[352225664,1739009439770,-500.0,0.00010958,2]
[352225665,1739009439779,-500.0,0.00010958,2]
[352225666,1739009439789,-564.95,0.00010958,2]
[352225667,1739009439798,-500.0,0.00010958,2]
[352225668,1739009439807,-16776.75143764,0.00010958,2]
[352225669,1739009439822,-1071.99856236,0.00010958,2]
[352225670,1739009439831,-500.0,0.00010958,2]
[352225671,1739009439840,-558.50055505,0.00010958,2]
[352225672,1739009439850,-500.0,0.00010958,2]
[352225673,1739009439859,-500.0,0.00010958,2]
[352225674,1739009439868,-500.0,0.00010958,2]
[352225675,1739009439878,-1150.84,0.00010958,2]
[352225676,1739009439887,-3466.13,0.00010958,2]
[352225677,1739009439896,-500.0,0.00010958,2]
[352225678,1739009439906,-500.0,0.00010958,2]
[352225679,1739009439916,-500.0,0.00010958,2]
[352225680,1739009439925,-441.5567632,0.00010958,2]
[352225681,1739009439934,-500.0,0.00010958,2]
[352225682,1739009439943,-846.96,0.00010958,2]
[352225683,1739009439954,-780.26,0.00010958,2]
[352225684,1739009439963,-500.0,0.00010958,2]
[352225685,1739009439972,-505.40138683,0.00010958,2]
[352225686,1739009439981,-500.0,0.00010958,2]
[352225687,1739009439990,-3788.56,0.00010958,2]
[352225688,1739009439999,-500.0,0.00010958,2]
[352225689,1739009440009,-509.44014121,0.00010958,2]
[352225690,1739009440024,-1794.57,0.00010958,2]
[352225691,1739009440033,-500.0,0.00010958,2]
[352225692,1739009440042,-746.18,0.00010958,2]
[352225693,1739009440051,-500.0,0.00010958,2]
[352225694,1739009440066,-500.0,0.00010958,2]
[352225695,1739009440079,-637.54,0.00010958,2]
[352225696,1739009440090,-766.04,0.00010958,2]
[352225697,1739009440102,-500.0,0.00010958,2]
[352225698,1739009440111,-500.0,0.00010958,2]
[352225699,1739009440120,-1249.76,0.00010958,2]
[352225700,1739009440129,-500.0,0.00010958,2]
[352225701,1739009440138,-500.0,0.00010958,2]
[352225702,1739009440147,-500.0,0.00010958,2]
[352225703,1739009440156,-1207.57,0.00010958,2]
[352225704,1739009440165,-5435.25,0.00010958,2]
[352225705,1739009440174,-500.0,0.00010958,2]
[352225706,1739009440183,-500.0,0.00010958,2]
[352225707,1739009440192,-500.0,0.00010958,2]
[352225708,1739009440202,-500.0,0.00010958,2]
[352225709,1739009440211,-500.0,0.00010958,2]
[352225710,1739009440220,-500.0,0.00010958,2]
[352225711,1739009440230,-500.0,0.00010958,2]
[352225712,1739009440239,-500.0,0.00010958,2]
[352225713,1739009440249,-500.0,0.00010958,2]
[352225714,1739009440258,-1411.95,0.00010958,2]
[352225715,1739009440267,-500.0,0.00010958,2]
[352225716,1739009440276,-500.0,0.00010958,2]
[352225717,1739009440286,-500.0,0.00010958,2]
[352225718,1739009440295,-500.0,0.00010958,2]
[352225719,1739009440304,-47019.47,0.00010958,2]
[352225722,1739009440313,-500.0,0.00010958,2]
[352225724,1739009440322,-3974.37,0.00010958,2]
[352225725,1739009440331,-500.0,0.00010958,2]
[352225726,1739009440340,-500.0,0.00010958,2]
[352225727,1739009440349,-506.50061272,0.00010958,2]
[352225728,1739009440358,-500.0,0.00010958,2]
[352225729,1739009440367,-501.80219771,0.00010958,2]
[352225730,1739009440376,-505.49035837,0.00010958,2]
[352225731,1739009440385,-2098.99,0.00010958,2]
[352225732,1739009440394,-674.98,0.00010958,2]
[352225733,1739009440403,-2018.79,0.00010958,2]
[352225734,1739009440413,-500.0,0.00010958,2]
[352225736,1739009440422,-500.0,0.00010958,2]
[352225737,1739009440431,-500.0,0.00010958,2]
[352225739,1739009440440,-500.0,0.00010958,2]
[352225740,1739009440451,-500.0,0.00010958,2]
[352225741,1739009440460,-500.0,0.00010958,2]
[352225742,1739009440470,-500.0,0.00010958,2]
[352225743,1739009440479,-1445.5,0.00010958,2]
[352225744,1739009440489,-503.29889513,0.00010958,2]
[352225745,1739009440498,-1227.56,0.00010958,2]
[352225746,1739009440507,-500.0,0.00010958,2]
[352225747,1739009440516,-500.0,0.00010958,2]
[352225748,1739009440525,-500.0,0.00010958,2]
[352225749,1739009440535,-500.0,0.00010958,2]
[352225750,1739009440544,-345.55891214,0.00010958,2]
[352225751,1739009440553,-500.0,0.00010958,2]
[352225752,1739009440563,-1757.4,0.00010958,2]
[352225753,1739009440572,-500.0,0.00010958,2]
[352225754,1739009440581,-500.0,0.00010958,2]